Cogmind - Beta 17 @@@ ROGUE MODE // 2026.08.05 @ 19:26:39 Player: Minty Result: Destroyed by 9B-RN9(R) with Subdweller Laser Performance ------------- Evolutions (0) 0 Regions Visited (2) 400 Robots Destroyed (13) 65 Value Destroyed (419) 419 Prototype IDs (0) 0 Alien Tech Used (0) 0 Bonus (5200) 5200 TOTAL SCORE: 6084 Bonus ------- Prayed to X0-1V1 5000 Major X0-1V1 Interference 200 Cogmind --------- Core Integrity 0/250 Matter 211/300 Energy 200/200 System Corruption 2% Temperature Cool (6) Movement Treading (240) Ox1 Location -10/Subcaves Parts ------- > --- POWER (1) -------- Subdweller Power Source > --- PROPULSION (2) --- Light Treads > --- UTILITY (2) ------ Large Storage Unit Seismic Detector > --- WEAPON (2) ------- Battle Rifle Battle Cannon > --- INVENTORY (15) --- Light Ion Engine Aluminum Leg Aluminum Leg Aluminum Leg Wheel Compact Wheel Compact Wheel Flightbrick Heat Sink Small Storage Unit Terrain Scanner Subdweller Machine Gun Peak State ------------ > --- POWER ------------ Subdweller Power Source > --- PROPULSION ------- Light Treads Light Treads > --- UTILITY ---------- Heat Sink Large Storage Unit > --- WEAPON ----------- Riot Gun Subdweller Machine Gun > --- INVENTORY -------- Light Ion Engine Aluminum Leg Aluminum Leg Aluminum Leg Aluminum Leg Wheel Compact Wheel Compact Wheel Flightbrick Small Storage Unit Terrain Scanner Seismic Detector [Rating: 15] Favorites ----------- Power Ion Engine Engine Ion Engine Propulsion Aluminum Leg Treads Light Treads Leg Aluminum Leg Utility Large Storage Unit Device Heat Sink Storage Large Storage Unit Weapon Small Laser Energy Gun Small Laser Ballistic Gun Assault Rifle Ballistic Cannon Battle Cannon Build | -11 -10 -10 ------- Run | Yrd Mat Sub Slots Evolved . | . . . Power . | . . . Propulsion . | . . . Utility . | . . . Weapon . | . . . Parts Attached 13 | . 3 10 Power 2 | . . 2 Engine 2 | . . 2 Core . | . . . Reactor . | . . . Propulsion 3 | . 1 2 Treads 2 | . . 2 Leg 1 | . 1 . Wheel . | . . . Hover . | . . . Flight . | . . . Utility 3 | . 2 1 Device 2 | . 1 1 Storage 1 | . 1 . Processor . | . . . Hackware . | . . . Protection . | . . . Artifact . | . . . Weapon 5 | . . 5 Energy Gun 2 | . . 2 Energy Cannon . | . . . Ballistic Gun 2 | . . 2 Ballistic Cannon 1 | . . 1 Launcher . | . . . Special Weapon . | . . . Impact Weapon . | . . . Slashing Weapon . | . . . Piercing Weapon . | . . . Special Melee Weapon . | . . . Unidentified Prototypes . | . . . Parts Lost 6 | . . 6 Power 2 | . . 2 Propulsion 1 | . . 1 Utility . | . . . Weapon 3 | . . 3 Highest Loss Streak 3 | . . 3 To Critical Strikes . | . . . Average Backups 10 | . 9 12 Power 1 | . 1 1 Propulsion 6 | . 5 7 Utility 1 | . 1 3 Weapon . | . 1 . Tool/Special . | . . . Unused Backups 16 | . 4 12 Power 3 | . 1 2 Propulsion 7 | . 1 6 Utility 2 | . . 2 Weapon 4 | . 2 2 Tool/Special . | . . . Average Slot Usage (%) 97 | . 98 96 Engine 13 | . 14 12 Treads 10 | . . 24 Leg 17 | . 28 3 Device 13 | . 12 14 Storage 14 | . 14 14 Energy Gun 12 | . 14 10 Ballistic Gun 14 | . 14 15 Peak Build Rating 15 | . 8 15 Average Rating 9 | . 7 11 On Entrance 6 | 6 6 8 Avg Prop Armor Cover (%) . | . . . Naked Turns . | . . . Heaviest Build 33 | 13 29 33 Greatest Support 40 | 20 20 40 Greatest Overweight (x) 1 | . 1 1 Average Overweight (x) . | . . . Largest Inventory Capacity 15 | . 15 15 Average Capacity 13 | . 12 15 Most Carried 15 | . 13 15 Average Carried 11 | . 9 13 Final Capacity 15 | 8 15 15 Final Carried 15 | 6 13 15 Class Distribution -------------------- 100% | Mutant Dominant Class ---------------- Mutant | -10/Materials Mutant | -10/Subcaves Resources | -11 -10 -10 ----------- Run | Yrd Mat Sub Matter Collected 367 | 194 75 98 Remotely . | . . . Salvage Created 476 | . 359 117 Parts 34 | . 26 8 Haulers Intercepted . | . . . Recyclers Shooed 1 | . 1 . Parts Field Recycled . | . . . Retrieved Matter . | . . . Parts Self-Destructed 5 | . . 5 Prevented . | . . . Parts Restored . | . . . Kills | -11 -10 -10 ------- Run | Yrd Mat Sub Combat Hostiles Destroyed 13 | . 10 3 Guns 13 | . 10 3 Classes Destroyed 4 | . 2 2 Swarmer 3 | . 3 . Grunt 7 | . 7 . Sentry 1 | . . 1 Subdweller 2 | . . 2 Best Kill Streak 4 | . 4 1 Combat Bots Only 4 | . 4 1 Max Kills in Single Turn 1 | . 1 1 Gunslinging . | . . . Exploded . | . . . Melee . | . . . Uniques/NPCs Destroyed . | . . . Combat | -11 -10 -10 -------- Run | Yrd Mat Sub Hostile Shots Fired 91 | . 37 54 Missed 22 | . 10 12 Hits 69 | . 27 42 Projectile 69 | . 27 42 Critical Strikes 4 | . . 4 Damage Taken 1229 | . 319 910 Core 267 | . 48 219 Absorbed by Shields . | . . . Core Remaining (%) 100 | 100 . . Volleys Fired 49 | . 27 22 Largest 2 | . 2 2 Hottest 80 | . 60 80 Shots Fired 95 | . 54 41 Gun 92 | . 54 38 Cannon 3 | . . 3 Launcher . | . . . Special . | . . . Kinetic 50 | . 27 23 Thermal 41 | . 27 14 Explosive . | . . . Electromagnetic 4 | . . 4 Robot Hit Streak 9 | . 5 9 Robot Miss Streak 3 | . 2 3 Penetration Max . | . . . Secondary Targets 1 | . 1 . Max Gunslinging Chain 1 | . 1 . Shots Hit Robots 64 | . 31 33 Core Hits 29 | . 20 9 Critical Kills 1 | . 1 . Critical Parts Destroyed . | . . . Critical Strikes 3 | . 1 2 Destroy 3 | . 1 2 Melee Attacks . | . . . Impact . | . . . Slashing . | . . . Piercing . | . . . Sneak Attacks . | . . . Combat Hostiles . | . . . Follow-up Attacks . | . . . Damage Inflicted 927 | . 378 549 Guns 841 | . 374 467 Cannons 78 | . . 78 Explosions . | . . . Melee . | . . . Ramming 8 | . 4 4 Kinetic 572 | . 173 399 Thermal 301 | . 201 100 Explosive . | . . . Electromagnetic 46 | . . 46 Impact . | . . . Slashing . | . . . Piercing . | . . . Highest Corruption 2 | . . 2 Average Corruption 2 | . . 2 Corruption Purged . | . . . Corruption Blocked . | . . . Effects 7 | . . 7 Message Errors 3 | . . 3 Matter Fused 1 | . . 1 Energy Discharges 1 | . . 1 Parts Rejected 1 | . . 1 Weapon Failures 1 | . . 1 Overload Shots . | . . . Overflow Damage . | . . . Projectiles . | . . . Explosions . | . . . Melee . | . . . Knockbacks 4 | . . 4 Impact 1 | . . 1 Kinetic 3 | . . 3 Secondary . | . . . Self-Inflicted Damage . | . . . Shots . | . . . Rammed 1 | . . 1 Targets Rammed 3 | . 2 1 Kicked 2 | . 2 . Crushed . | . . . Highest Temperature 12 | . 12 . Average Temperature 10 | . 10 . Received Heat Transfer 697 | . 159 538 Siege Activations . | . . . Martial Activations . | . . . Shielding Activations . | . . . Robots Disrupted . | . . . Combat Hostiles . | . . . Robots Corrupted . | . . . Combat Hostiles . | . . . Parts Fried . | . . . Impact Corruptions . | . . . Robots Melted . | . . . Combat Hostiles . | . . . Parts Melted . | . . . Heat Transferred 675 | . 450 225 Parts Sabotaged . | . . . Parts Stolen . | . . . Parts Stripped . | . . . Power Chain Reactions . | . . . Alert | -11 -10 -10 ------- Run | Yrd Mat Sub Maximum Alert Level . | . . . Low Security (%) 100 | . 100 . Level 1 . | . . . Level 2 . | . . . Level 3 . | . . . Level 4 . | . . . Level 5 . | . . . High Security . | . . . Max Security . | . . . Peak Influence 119 | . 119 . Initial . | . . . Average 33 | . 33 . Influence Increases 326 | . 306 20 Destroy 0b10 Robot/C 220 | . 200 20 Destroy Leader 50 | . 50 . Successful Hack 10 | . 10 . Destroy Structure 1 | . 1 . Lose Combat Pursuer 45 | . 45 . Influence Decreases 326 | . 211 115 Entered New Map 47 | . . 47 Time Decay 269 | . 211 58 Lost Part 10 | . . 10 Squads Dispatched 2 | . 2 . Investigation 1 | . 1 . Extermination . | . . . Reinforcement 1 | . 1 . Assault . | . . . Garrison . | . . . Intercept . | . . . Searches Triggered . | . . . Construction Impeded . | . . . Haulers Reinforced . | . . . Active Scanning Responses . | . . . Cargo Convoy Interrupts . | . . . Stealth | -11 -10 -10 --------- Run | Yrd Mat Sub Distress Signals 1 | . 1 . Communications Jammed . | . . . Distress Signals . | . . . Times Spotted 24 | . 18 6 Peak Tracking Total 3 | . 3 3 Tactical Retreats 2 | . 2 . Traps | -11 -10 -10 ------- Run | Yrd Mat Sub Traps Triggered . | . . . Indirectly . | . . . Trap Hack Attempts . | . . . Triggered . | . . . Disarmed . | . . . Reprogrammed . | . . . Reused . | . . . Traps Extracted . | . . . Installed . | . . . Triggered . | . . . Machines | -11 -10 -10 ---------- Run | Yrd Mat Sub Machines Disabled . | . . . Max in Single Turn . | . . . Machines Repaired . | . . . Machines Dismantled . | . . . Machines Sabotaged . | . . . Overloaded Fab Kills . | . . . Hacking | -11 -10 -10 --------- Run | Yrd Mat Sub Machines Accessed 3 | . 3 . Terminals 3 | . 3 . Fabricators . | . . . Repair Stations . | . . . Recycling Units . | . . . Scanalyzers . | . . . Garrison Access . | . . . Total Hacks 8 | . 8 . Successful 3 | . 3 . Failed 5 | . 5 . Catastrophic 2 | . 2 . Database Lockouts . | . . . Manual 4 | . 4 . Terminals 8 | . 8 . Fabricators . | . . . Repair Stations . | . . . Recycling Units . | . . . Scanalyzers . | . . . Garrison Access . | . . . Terminal Hacks 2 | . 2 . Robot Analysis 1 | . 1 . Maintenance Status 1 | . 1 . Fabricator Hacks . | . . . Repair Station Hacks . | . . . Recycling Unit Hacks . | . . . Scanalyzer . | . . . Garrison Access Hacks . | . . . Unauthorized Hacks 1 | . 1 . Terminals 1 | . 1 . Botnet 1 | . 1 . Fabricators . | . . . Repair Stations . | . . . Recycling Units . | . . . Scanalyzers . | . . . Garrison Access . | . . . Data Cores Recovered . | . . . Used . | . . . Hacking Detections 3 | . 3 . Full Trace Events 1 | . 1 . Feedback Events . | . . . Feedback Blocked . | . . . Robot Schematics Acquired . | . . . Robots Built . | . . . Authchips . | . . . Time . | . . . Total Robot Build Rating . | . . . Part Schematics Acquired . | . . . Parts Built . | . . . Authchips . | . . . Time . | . . . Total Part Build Rating . | . . . Part Studies Acquired . | . . . Parts Repaired . | . . . Time . | . . . Parts Recycled . | . . . Recycled Matter . | . . . Retrieved Matter . | . . . Retrieved Components . | . . . Parts Scanalyzed . | . . . Part Schematics Acquired . | . . . Parts Damaged . | . . . Bothacking | -11 -10 -10 ------------ Run | Yrd Mat Sub Used RIF Installer . | . . . Robots Hacked . | . . . Non-combat . | . . . Combat . | . . . Robot Hacks Applied . | . . . Relay Couplers Released . | . . . Fabnet Peak Effective % . | . . . Robots Rewired . | . . . Allies Hacked . | . . . Hacks Repelled . | . . . Allies | -11 -10 -10 -------- Run | Yrd Mat Sub Total Allies . | . . . Largest Group . | . . . Highest-Rated Group . | . . . Highest-Rated Ally . | . . . Total Orders . | . . . Ally Attacks . | . . . Total Damage . | . . . Kills . | . . . Allies Corrupted . | . . . Allies Melted . | . . . X0-1V1 Amusement Gains 3 | . 3 . Good Acts 1 | . . 1 Bad Acts 2 | . . 2 Intel | -11 -10 -10 ------- Run | Yrd Mat Sub Active Infowar (turns) 205 | . . 205 Seismic 205 | . . 205 Robot Analysis Total 1 | . 1 . Derelict Logs Recovered . | . . . Drone Launches . | . . . Drone Recoveries . | . . . Exploration | -11 -10 -10 ------------- Run | Yrd Mat Sub Turns Passed 1265 | . 718 547 Spaces Moved 646 | 1 379 266 Core . | . . . Treads 238 | . . 238 Legs 408 | 1 379 28 Wheels . | . . . Hover . | . . . Flight . | . . . Fastest Speed 120 | 120 120 160 Average Speed 162 | 120 162 163 Slowest Speed 190 | 120 190 190 Overloaded Moves . | . . . Propulsion Burnouts . | . . . Robots Hopped . | . . . Potential Cave-ins . | . . . Cave-ins Triggered . | . . . Exploration Rate (%) 28 | 1 62 21 Regions Visited 2 Branch Regions 1 Pre-discovered Areas . | . . . Known Exits Taken . | . . . Unknown Exits Taken 2 | 1 1 . Scrap Searched . | . . . Spaces Dug . | . . . Terrain Destroyed . | . . . Melee . | . . . Projectile . | . . . AOE . | . . . Terrain Rammed . | . . . Walls Destroyed . | . . . Machines Disabled . | . . . Actions | -11 -10 -10 --------- Run | Yrd Mat Sub Total 759 | . 426 333 Wait 37 | . 8 29 Move 644 | . 378 266 Hop . | . . . Pick Up 9 | . 7 2 Fast Attach 6 | . 1 5 Attach 2 | . . 2 Detach . | . . . Swap 6 | . 2 4 Drop 3 | . 1 2 Fire 49 | . 27 22 Melee . | . . . Ram . | . . . Kick 2 | . 2 . Crush 1 | . . 1 Escape Stasis . | . . . Rewire . | . . . Trap . | . . . Miscellaneous . | . . . Route ------- -11/Scrapyard -10/Materials (discovered 3 exits: [*Mat] / [*Min] / [*Sub]) -10/Subcaves History --------- Turn | Location | Event 1 | -11/Scrapyard | Discovered new exit (range 0) 1 | -11/Scrapyard | Entered Materials 155 | -10/Materials | Discovered new exit (range 13) 314 | -10/Materials | Build established: Mutant 548 | -10/Materials | Discovered new exit (range 6) 705 | -10/Materials | Discovered new exit (range 7) 717 | -10/Materials | Prayed at D.C.S.S. Altar Unit 719 | -10/Materials | Entered Subcaves 720 | -10/Subcaves | Approached by a straggling Scientist 959 | -10/Subcaves | A Subdweller sparked back to life 959 | -10/Subcaves | A Subdweller sparked back to life 959 | -10/Subcaves | A Subdweller sparked back to life 969 | -10/Subcaves | Core integrity fell below 50% 988 | -10/Subcaves | Core integrity fell below 20% 1004 | -10/Subcaves | Found Prototype Flight Unit 1014 | -10/Subcaves | Lost 3 parts (2p1w) 1266 | -10/Subcaves | Destroyed by 9B-RN9(R) with Subdweller Laser Last Messages --------------- 01016_ Acquired Sub. Power Source. 01017_ Subatomizers dissect the Sub. Optics. 01023_ LBFE,WEMWEWFHPZ//X XC>JR5T62 01028_ Subatomizers dissect the Sub. Optics. 01029_ The swirling icy cloud dissipates. 01059_ Dropped Aluminum Leg. 01060_ Acquired Battle Cannon. 01080_ Dropped Riot Gun. 01080_ Acquired Battle Rifle. 01103_ System corrupted: Matter fused (-7). 01139_ MRS>:Q<#RE%%PT7L86QVQ:AG Prototype Device suddenly appears amidst shimmering waves of color. 01227_ >MRWEP&4NU0A>ZZ/|R0 DQHDEDRHFJTXAGCPK 01247_ System corrupted: Sub. Power Source rejected. 01247_ Acquired Sub. Power Source. 01251_ 9B-RN9(R) suffers critical hit (Destroy). 01254_ Lgt. Treads destroyed. 01254_ Sub. Machine Gun shoots sparks and powers down. 01258_ 9B-RN9(R) knocked back. 01266_ X0-1V1 cackles wildly! Map ----- +----------------------------------------------------+ | ?????????????????????????????????????????????????? | | ?????????????????????????????????????????????????? | | ?????????????????????????????????????????????????? | | ?????????????????????????????????????????????????? | | ?????????????????????????????????????????????????? | | ?????????????????????????????????????????????????? | | ?????????????????????????????????????????????????? | | ?????????????????????????????????????????????????? | | ?????????????????????????????????????????????????? | | ?????????????????????????????????????????????????? | | ?????????????????????????????????????????????????? | | ?????????????????????????????????????????????????? | | ?????????????????????????????????????????????????? | | ?????????????????????????????????????????????????? | | ?????????????????????????????????????????????????? | | ?????????????????##?##???????????????????????????? | | ????????????????## ## ######?????????????????????? | | ????????????????# ""###???????????????????? | | ?????????????????? "" ##??????????????????? | | ???????????????????# "" #??????????????????? | | ????????????????????? ""#??????????????????? | | ??????????????????????# %R##?????????????????? | | ??????????????????????# % "#?????????????????? | | ????????????????????### #?????????????????? | | ##??????????????##### ##?????????????????? | | ##???????###??## @## #??????????????????? | | #??###### #### ##? #??????????????????? | | #??## ## ## ######??? #?????????????????? | | #### #?????????" ????????????????? | | ## # #??????????" "???????????????? | | ###?????????? " #??????????????? | | #????????????? #?????????????? | | ### #### #?????????????? #?????????????? | | ??####??### #???????????????#?????????????? | | ??????????## ######?????????????????????????????? | | ???????????####??????????????????????????????????? | | ?????????????????????????????????????????????????? | | ?????????????????????????????????????????????????? | | ?????????????????????????????????????????????????? | | ?????????????????????????????????????????????????? | | ?????????????????????????????????????????????????? | | ?????????????????????????????????????????????????? | | ?????????????????????????????????????????????????? | | ?????????????????????????????????????????????????? | | ?????????????????????????????????????????????????? | | ?????????????????????????????????????????????????? | | ?????????????????????????????????????????????????? | | ?????????????????????????????????????????????????? | | ?????????????????????????????????????????????????? | | ?????????????????????????????????????????????????? | +----------------------------------------------------+ Best States ------------- Heat Dissipation 35 Energy Generation 15 Energy Capacity 250 Matter Stores 300 Matter Capacity 300 Sight Range 16 Terrain Scan Density 10 Evasion (%) 55 Recoil Reduction 2 Item Schematics ----------------- None Robot Schematics ------------------ None Fabricated ------------ Nothing Repaired ---------- Nothing Studied --------- None Alien Tech Used ----------------- None Achievements -------------- None Challenges ------------ None Game ------ Seed PortableImprovedSink Manual? 0 Play Time 00:09:17 Cumulative 1353.0 hours Start 2026.08.05 @ 19:16:25 End 2026.08.05 @ 19:26:39 Sessions 1 Manual Loads 0 Difficulty Rogue Special Mode None Game No. 1657 Rogue 1373 Adventurer 124 Explorer 160 Win Type - Total 69 Types 54/0/9/4/1/0/0/1/0/0 Lore% 93 Gallery% 84 Achievement% 73 Wizard Run 0 Options --------- Layout 0 ASCII 0 Keyboard 1 Movement Numpad Keybinds 0 Fullscreen 2 Font 18/X11 Map View 76x50 Zoom Use 0% Tactical HUD 1 Map Filters NONE Filters NONE Steam 1 RUN: 705278f0-cc49-420a-9a36-7a1a9ad1f7cf